Workbook

Sheet MYP, MSS
B1: Eetu Heiniluoma | E1: 12.5.2004 Pori
B2: YKKÖSPESIS | E2: Runkosarja | L2: Runkosarja TOP-10 | Q2: Jatkosarjat | X2: SUOMENSARJA | AA2: Runkosarja | AH2: Runkosarja TOP-10 | AM2: Jatkosarjat
B3: Vuosi | C3: Sija | D3: Seura | E3: OTT | F3: KUN | G3: LÖI | H3: TOI | I3: KL | J3: KL-% | L3: LÖI | M3: TOI | N3: L+T | O3: KL | Q3: OTT | R3: KUN | S3: LÖI | T3: TOI | U3: KL | V3: KL-% | X3: Vuosi | Y3: Sija | Z3: Seura | AA3: OTT | AB3: KUN | AC3: LÖI | AD3: TOI | AE3: KL | AF3: KL-% | AH3: LÖI | AI3: TOI | AJ3: L+T | AK3: KL | AM3: OTT | AN3: KUN | AO3: LÖI | AP3: TOI | AQ3: KL | AR3: KL-%
X4: 2021 | Y4: 5. | Z4: Manse PP | AA4: 16 | AB4: 0 | AC4: 3 | AD4: 25 | AE4: 70 | AF4: 66.0 % | AG4: 106
B5: 2022 | C5: 11. | D5: Tarmo | E5: 6 | F5: 0 | G5: 0 | H5: 1 | I5: 15 | J5: 60.0 % | K5: 25 | Q5: 1 | R5: 0 | S5: 0 | T5: 0 | U5: 2 | V5: 33.3 % | W5: 6 | X5: 2022 | Y5: 7. | Z5: Manse PP | AA5: 13 | AB5: 0 | AC5: 4 | AD5: 20 | AE5: 64 | AF5: 72.7 % | AG5: 88
B6: 2023 | C6: 2. | D6: KaMa | E6: 24 | F6: 0 | G6: 7 | H6: 23 | I6: 76 | J6: 58.9 % | K6: 129 | Q6: 5 | R6: 0 | S6: 2 | T6: 5 | U6: 13 | V6: 61.9 % | W6: 21 | X6: 2023 | Y6: 2. | Z6: Tarmo | AA6: 1 | AB6: 0 | AC6: 0 | AD6: 1 | AE6: 3 | AF6: 60.0 % | AG6: 5
B7: YHTEENSÄ | E7: =SUM(E4:E6) -> 30 | F7: =SUM(F4:F6) -> 0 | G7: =SUM(G4:G6) -> 7 | H7: =SUM(H4:H6) -> 24 | I7: =SUM(I4:I6) -> 91 | J7: =PRODUCT(I7/K7) -> 59.1 % | K7: =SUM(K4:K6) -> 154 | Q7: =SUM(Q4:Q6) -> 6 | R7: =SUM(R4:R6) -> 0 | S7: =SUM(S4:S6) -> 2 | T7: =SUM(T4:T6) -> 5 | U7: =SUM(U4:U6) -> 15 | V7: =PRODUCT(U7/W7) -> 55.6 % | W7: =SUM(W4:W6) -> 27 | X7: YHTEENSÄ | AA7: =SUM(AA4:AA6) -> 30 | AB7: =SUM(AB4:AB6) -> 0 | AC7: =SUM(AC4:AC6) -> 7 | AD7: =SUM(AD4:AD6) -> 46 | AE7: =SUM(AE4:AE6) -> 137 | AF7: =PRODUCT(AE7/AG7) -> 68.8 % | AG7: =SUM(AG4:AG6) -> 199 | AM7: =SUM(AM4:AM6) -> 0 | AN7: =SUM(AN4:AN6) -> 0 | AO7: =SUM(AO4:AO6) -> 0 | AP7: =SUM(AP4:AP6) -> 0 | AQ7: =SUM(AQ4:AQ6) -> 0 | AR7: 0.0 % | AS7: =SUM(AS4:AS6) -> 0
B9: KAIKKI OTTELUT | E9: OTT | F9: KUN | G9: LÖI | H9: TOI | I9: KL | J9: KL-% | L9: ka/L | M9: ka/T | N9: ka/l+t | O9: ka/kl | R9: Seurat | T9: KaMa = Kankaanpään Maila (1958), kasvattajaseura
B10: SUPERPESIS | E10: 0 | F10: 0 | G10: 0 | H10: 0 | I10: 0 | J10: 0.0 % | L10: 0.00 | M10: 0.00 | N10: 0.00 | O10: 0.00 | T10: Manse PP = Manse PP, Tampere (2005)
B11: YKKÖSPESIS | E11: =PRODUCT(E7+Q7) -> 36 | F11: =PRODUCT(F7+R7) -> 0 | G11: =PRODUCT(G7+S7) -> 9 | H11: =PRODUCT(H7+T7) -> 29 | I11: =PRODUCT(I7+U7) -> 106 | J11: =PRODUCT(I11/K11) -> 58.6 % | K11: =PRODUCT(K7+W7) -> 181 | L11: =PRODUCT((F11+G11)/E11) -> 0.25 | M11: =PRODUCT(H11/E11) -> 0.81 | N11: =PRODUCT((F11+G11+H11)/E11) -> 1.06 | O11: =PRODUCT(I11/E11) -> 2.94 | T11: Tarmo = Ikaalisten Tarmo (1908)
B12: SUOMENSARJA | E12: =PRODUCT(AA7+AM7) -> 30 | F12: =PRODUCT(AB7+AN7) -> 0 | G12: =PRODUCT(AC7+AO7) -> 7 | H12: =PRODUCT(AD7+AP7) -> 46 | I12: =PRODUCT(AE7+AQ7) -> 137 | J12: =PRODUCT(I12/K12) -> 68.8 % | K12: =PRODUCT(AG7+AS7) -> 199 | L12: =PRODUCT((F12+G12)/E12) -> 0.23 | M12: =PRODUCT(H12/E12) -> 1.53 | N12: =PRODUCT((F12+G12+H12)/E12) -> 1.77 | O12: =PRODUCT(I12/E12) -> 4.57
B13: YHTEENSÄ | E13: =SUM(E10:E12) -> 66 | F13: =SUM(F10:F12) -> 0 | G13: 16 | H13: 75 | I13: 243 | J13: =PRODUCT(I13/K13) -> 63.9 % | K13: =SUM(K10:K12) -> 380 | L13: =PRODUCT((F13+G13)/E13) -> 0.24 | M13: =PRODUCT(H13/E13) -> 1.14 | N13: =PRODUCT((F13+G13+H13)/E13) -> 1.38 | O13: =PRODUCT(I13/E13) -> 3.68
